bitfinex-derivatives/quotes_BTCF0:USTF0_20251120
["timestamp","ask_amount","ask_price","bid_price","bid_amount"]
[1763659933470,0.00011028,87092.0,87091.0,0.011495]
[1763659933673,0.10025398,87135.0,87091.0,0.011495]
[1763659933674,0.24922427,87130.0,87094.0,0.0574724]
[1763659933873,0.04010159,87146.0,87137.0,0.0114888]
[1763659934175,0.2493964,87150.0,87138.0,0.00219803]
[1763659934364,0.0114915,87118.0,87088.0,0.04224486]
[1763659934569,0.00017213,87112.0,87108.0,0.0114927]
[1763659934768,0.00017213,87119.0,87109.0,0.00219803]
[1763659934970,0.00017213,87119.0,87118.0,0.0114914]
[1763659935275,0.011489,87137.0,87118.0,0.00219803]
[1763659935468,0.05300255,87146.0,87118.0,0.00219803]
[1763659935469,0.24922427,87130.0,87118.0,0.00219803]
[1763659935671,0.0114929,87107.0,87073.0,0.03074956]
[1763659935976,0.0114929,87107.0,87053.0,0.08199883]
[1763659935977,0.24922427,87100.0,87086.0,0.00219803]
[1763659936173,0.04010159,87119.0,87086.0,0.00219803]
[1763659936367,0.00017224,87111.0,87110.0,0.0114925]
[1763659936568,0.00017224,87111.0,87110.0,0.00219803]
[1763659936773,0.0114943,87097.0,87094.0,0.00017224]
[1763659936971,0.24922427,87104.0,87053.0,0.03074956]
[1763659937174,0.24922427,87090.0,87065.0,0.0114983]
[1763659937369,0.0114917,87116.0,87052.0,0.0575006]
[1763659937370,0.0114937,87101.0,87066.0,0.00219803]
[1763659937569,0.24922427,87100.0,87098.0,0.0114939]
[1763659937768,0.24922427,87100.0,87083.0,0.0114959]
[1763659937769,0.001,87111.0,87108.0,0.0114926]
[1763659937970,0.001,87111.0,87109.0,0.00219803]
[1763659938275,0.0114935,87103.0,87077.0,0.0114967]
[1763659938480,0.00017224,87099.0,87078.0,0.00219803]
[1763659938688,0.00017224,87099.0,87080.0,0.0114964]
[1763659938974,0.00017224,87099.0,87098.0,0.00219803]
[1763659940478,0.00017224,87099.0,87060.0,0.03074956]
[1763659940785,0.011498,87069.0,87061.0,0.00219803]
[1763659940979,0.00017224,87074.0,87061.0,0.00219803]
[1763659941576,0.0114984,87065.0,87061.0,0.00219803]
[1763659941772,0.24922427,87071.0,87061.0,0.00219803]
[1763659941972,0.0114982,87067.0,87061.0,0.00219803]
[1763659942174,0.02402222,87071.0,87061.0,0.01369693]
[1763659942469,0.27324649,87071.0,87064.0,0.0114985]
[1763659942668,0.01252462,87071.0,87065.0,0.00219803]
[1763659942882,0.0114982,87067.0,87065.0,0.00219803]
[1763659943083,0.00017224,87074.0,87065.0,0.00219803]
[1763659943278,0.00017224,87074.0,87068.0,0.011498]
[1763659943581,0.01270466,87074.0,87073.0,0.00219803]
[1763659943782,0.00017224,87074.0,87073.0,0.00219803]
[1763659943977,0.00017224,87074.0,87032.0,0.03085853]
[1763659943978,0.0115025,87034.0,87032.0,0.03085853]
[1763659944179,0.0689853,87072.0,87032.0,0.03085853]
[1763659944180,0.24939662,87042.0,87032.0,0.002307]
[1763659944374,0.00017235,87046.0,87032.0,0.002307]
[1763659944579,0.01167335,87046.0,87032.0,0.002307]
[1763659944776,0.00017235,87046.0,87032.0,0.002307]
[1763659944977,0.0115022,87036.0,87032.0,0.002307]
[1763659945182,0.24922427,87042.0,87000.0,0.00757]
[1763659945183,0.011502,87038.0,87000.0,0.00757]
[1763659945480,0.24922427,87020.0,87009.0,0.00219803]
[1763659945682,0.00219803,87010.0,86966.0,0.03074956]
[1763659945987,0.00017235,86997.0,86993.0,0.0115078]
[1763659946175,0.09363509,87020.0,87014.0,0.0115051]
[1763659946376,0.09363509,87020.0,86993.0,0.0115078]
[1763659946377,8.377e-05,87019.0,87016.0,0.0115049]
[1763659946575,0.0022818,87019.0,87018.0,0.00073264]
[1763659947078,8.377e-05,87019.0,87018.0,0.00073264]
[1763659947285,5e-08,87027.0,87026.0,0.0115035]
[1763659947480,0.01383,87075.0,87022.0,0.01038]
[1763659947481,0.0114965,87080.0,87070.0,0.0114977]
[1763659947679,0.0114965,87080.0,87044.0,0.0115011]
[1763659947680,0.01383,87100.0,87079.0,0.00073264]
[1763659947872,0.1204326,87100.0,87079.0,0.00073264]
[1763659948086,0.24922427,87090.0,87080.0,0.00073264]
[1763659948387,0.0114992,87059.0,87040.0,0.0115016]
[1763659948683,0.0114992,87059.0,87030.0,0.00014493]
[1763659948684,0.24922427,87050.0,87041.0,0.00090489]
[1763659948985,0.00219803,87042.0,87041.0,0.00090489]
[1763659949183,0.00017225,87058.0,87052.0,0.0115001]
[1763659949384,0.0114996,87056.0,87053.0,0.00073264]
[1763659949686,0.00219803,87054.0,87053.0,0.00073264]
[1763659950190,0.0115014,87042.0,87041.0,0.00117225]
[1763659950485,0.0115029,87031.0,87030.0,0.00014493]
[1763659950684,0.0115029,87031.0,86995.0,0.72456]
[1763659950685,0.00219803,87031.0,86977.0,0.04099941]
[1763659950981,0.00219803,87031.0,87004.0,0.0115063]
[1763659950982,0.24922427,87020.0,87004.0,0.0115063]
[1763659951290,0.0115037,87025.0,86978.0,0.0115099]
[1763659951291,0.00219803,87019.0,87014.0,0.0115051]
[1763659951484,0.01335,87048.0,87016.0,0.0115049]
[1763659951485,0.00219803,87018.0,87016.0,0.0115049]
[1763659951673,0.00219803,87018.0,87017.0,0.00073264]
[1763659951879,0.00233355,87018.0,87017.0,0.00073264]
[1763659952181,0.0115058,87009.0,87008.0,0.00017235]
[1763659952386,0.0115068,87002.0,86988.0,0.0115085]
[1763659952684,0.00230233,87009.0,86992.0,0.011508]
[1763659952685,0.00219803,87001.0,86992.0,0.011508]
[1763659952882,0.011507,87000.0,86993.0,0.00073264]
[1763659953083,0.00219803,87001.0,86993.0,0.00073264]
[1763659953084,0.00219803,86994.0,86993.0,0.00073264]
[1763659954175,0.00219803,86994.0,86970.0,0.00012693]
[1763659954383,0.24922427,86990.0,86970.0,0.00012693]
[1763659954585,0.00219803,86989.0,86985.0,0.0115089]
[1763659954780,0.00232852,86989.0,86985.0,0.0115089]
[1763659956076,0.00232852,86989.0,86970.0,0.00012693]
[1763659956276,0.00232852,86989.0,86978.0,0.0115098]
[1763659956489,0.00232852,86989.0,86986.0,0.0115088]
[1763659956879,0.0115094,86982.0,86970.0,0.00012693]
[1763659957082,0.0115105,86974.0,86970.0,0.00012693]
[1763659957281,0.0115105,86974.0,86920.0,0.00999999]
[1763659957282,0.00219803,86971.0,86910.0,0.001]
[1763659957481,0.00017245,86951.0,86922.0,0.0115173]
[1763659957677,0.00017245,86951.0,86949.0,0.0115136]
[1763659957880,0.44249606,87000.0,86950.0,0.01365]
[1763659957881,0.00911,87000.0,86950.0,0.01365]
[1763659958088,0.09078943,86987.0,86950.0,0.01365]
[1763659958286,0.00233306,86986.0,86974.0,0.0115103]
[1763659958487,0.00233306,86986.0,86982.0,0.0115093]
[1763659958789,0.00233306,86986.0,86970.0,0.001]
[1763659958976,0.00017245,86979.0,86977.0,0.01151]
[1763659959179,0.00219803,86978.0,86970.0,0.0125109]
[1763659959379,0.0115102,86976.0,86970.0,0.0115109]
[1763659959688,0.0115119,86963.0,86961.0,0.00017245]
[1763659959886,0.00231339,86962.0,86961.0,0.00017245]
[1763659961477,0.00011536,86962.0,86961.0,0.00017245]
[1763659961892,0.00231339,86962.0,86961.0,0.00017245]
[1763659962488,0.00011536,86962.0,86961.0,0.00017245]
[1763659962697,0.00017245,86979.0,86978.0,0.0115099]
[1763659962989,0.00017245,86979.0,86961.0,0.00017245]
[1763659962990,0.00219803,86979.0,86961.0,0.00017245]
[1763659963195,0.0115117,86965.0,86961.0,0.00017245]
[1763659963489,0.0575392,86994.0,86961.0,0.00017245]
[1763659963490,0.00219803,86962.0,86961.0,0.00017245]
[1763659963680,0.00230906,86962.0,86961.0,0.00017245]
[1763659963880,0.0115142,86946.0,86928.0,0.01222]
[1763659964088,0.00230906,86962.0,86917.0,0.01161221]
[1763659964089,0.00234262,86945.0,86917.0,9.431e-05]
[1763659964305,0.00011913,86944.0,86917.0,9.431e-05]
[1763659964486,0.00219803,86943.0,86917.0,9.431e-05]
[1763659964788,0.01165935,86942.0,86935.0,0.0115156]
[1763659965092,0.01165935,86942.0,86930.0,0.00017245]
[1763659965093,0.00219803,86941.0,86930.0,0.00017245]
[1763659965293,0.0115161,86931.0,86930.0,0.00017245]
[1763659965596,0.0115161,86931.0,86917.0,9.431e-05]
[1763659965597,0.00233722,86931.0,86917.0,9.431e-05]
[1763659965786,0.00233722,86931.0,86918.0,0.0115178]
[1763659965985,0.00233722,86931.0,86917.0,9.431e-05]
[1763659966186,0.00233722,86931.0,86927.0,0.0115166]
[1763659966387,0.00233722,86931.0,86917.0,9.431e-05]
[1763659966592,0.00233722,86931.0,86927.0,0.0115166]
[1763659966789,0.00233722,86931.0,86923.0,0.0115172]
[1763659966989,0.0115176,86921.0,86917.0,9.431e-05]
[1763659967193,0.00219803,86918.0,86917.0,9.431e-05]
[1763659967391,0.00234668,86918.0,86917.0,9.431e-05]
[1763659967893,0.00014865,86918.0,86917.0,9.431e-05]
[1763659968282,0.00234668,86918.0,86917.0,9.431e-05]
[1763659968485,0.00014865,86918.0,86917.0,9.431e-05]
[1763659968788,0.00017255,86928.0,86927.0,0.0115166]
[1763659968991,0.00237058,86928.0,86917.0,9.431e-05]
[1763659969295,0.00237058,86928.0,86924.0,0.0115169]
[1763659969797,0.00017255,86928.0,86924.0,0.0115169]
[1763659969984,0.0115142,86946.0,86937.0,0.0115152]
[1763659970187,0.00219803,86945.0,86943.0,0.0115144]
[1763659970398,0.0123858,86962.0,86951.0,0.0115133]
[1763659970587,0.00219803,86945.0,86944.0,0.0115144]
[1763659970792,0.01344,86976.0,86958.0,0.0115125]
[1763659970793,0.00219803,86961.0,86958.0,0.0115125]
[1763659971804,0.00219803,86961.0,86954.0,0.011513]
[1763659971805,0.01371023,86961.0,86954.0,0.011513]
[1763659971992,0.011513,86955.0,86952.0,0.0115133]
[1763659972301,0.00017255,86968.0,86951.0,0.00017255]
[1763659972302,0.00219803,86953.0,86951.0,0.00017255]
[1763659972604,0.01371133,86953.0,86951.0,0.00017255]
[1763659972896,0.01344,86940.0,86917.0,9.431e-05]
[1763659973096,0.00219803,86918.0,86917.0,9.431e-05]
[1763659973696,0.001,86953.0,86936.0,0.0115153]
[1763659973898,0.00219803,86952.0,86945.0,0.0115142]
[1763659974206,0.00219803,86952.0,86946.0,0.0115141]
[1763659974398,0.00219803,86952.0,86949.0,0.0115136]
[1763659975102,0.0115135,86951.0,86917.0,0.01474431]
[1763659975402,0.00219803,86950.0,86946.0,0.0115141]
[1763659975592,0.0115137,86949.0,86946.0,0.0115141]
[1763659975796,0.00219803,86947.0,86919.0,0.0115176]
[1763659976000,0.00219803,86947.0,86946.0,0.0115141]
[1763659977090,0.001,86952.0,86951.0,0.0115135]
[1763659977295,0.001,86952.0,86917.0,0.07133381]
[1763659977296,0.00319803,86952.0,86941.0,0.0115148]
[1763659977493,0.00319803,86952.0,86920.0,0.0115175]
[1763659977698,0.01471143,86952.0,86921.0,0.0115174]
[1763659977898,0.24998594,86950.0,86923.0,0.0115171]
[1763659978094,0.0115142,86946.0,86919.0,0.0115176]
[1763659978303,0.00219803,86945.0,86919.0,0.0115176]
[1763659978500,0.00219803,86945.0,86942.0,0.0115145]
[1763659978700,0.0115144,86944.0,86938.0,0.0115151]
[1763659978901,0.00219803,86939.0,86938.0,0.0115152]
[1763659979207,0.00219803,86939.0,86935.0,0.0115155]
[1763659979401,0.0115137,86950.0,86949.0,0.0115137]
[1763659979402,0.1491483,86950.0,86949.0,0.0115137]
[1763659979706,0.00219803,86950.0,86949.0,0.0115137]
[1763659980094,0.00219803,86950.0,86920.0,0.0115175]
[1763659980296,0.00219803,86950.0,86917.0,0.01374431]
[1763659980297,0.1491483,86940.0,86917.0,0.01374431]
[1763659980501,0.1491483,86930.0,86927.0,0.0115165]
[1763659980708,0.0115172,86924.0,86917.0,9.431e-05]
[1763659981007,0.00219803,86918.0,86917.0,9.431e-05]
[1763659981705,0.00219803,86918.0,86881.0,0.04099941]
[1763659981706,0.00219803,86918.0,86890.0,0.0115215]
[1763659981911,0.1491483,86910.0,86884.0,0.0115223]
[1763659982203,0.00017255,86906.0,86905.0,0.0115196]
[1763659982407,0.00237058,86906.0,86905.0,0.04333]
[1763659982606,0.00237058,86906.0,86904.0,0.0115197]
[1763659982813,0.00237058,86906.0,86880.0,0.01365]
[1763659982814,0.0115198,86903.0,86881.0,0.0115227]
[1763659982999,0.1491483,86900.0,86880.0,0.01365]
[1763659983199,0.1491483,86890.0,86865.0,0.0115248]
[1763659983503,0.1491483,86875.0,86862.0,9.503e-05]
[1763659983708,0.00219803,86863.0,86862.0,9.503e-05]
[1763659984109,0.1491483,86872.0,86871.0,0.0115241]
[1763659984307,0.00010969,86874.0,86871.0,0.0115241]
[1763659984812,0.00010969,86874.0,86871.0,0.0254441]
[1763659985012,0.00017266,86886.0,86885.0,0.0115222]
[1763659985404,0.00237069,86886.0,86885.0,0.0115222]
[1763659985712,0.00237069,86886.0,86884.0,0.0115223]
[1763659985912,0.00237069,86886.0,86858.0,0.0115257]
[1763659986105,0.1491483,86880.0,86879.0,0.011523]
[1763659986305,0.00219803,86880.0,86879.0,0.011523]
[1763659986606,0.00017266,86886.0,86885.0,0.0115222]
[1763659986916,0.00237069,86886.0,86857.0,0.0115259]
[1763659987210,0.00237069,86886.0,86831.0,0.057647]
[1763659987211,0.1491483,86880.0,86851.0,0.0115267]
[1763659987412,0.1491483,86872.0,86870.0,0.0115241]
[1763659987608,0.1491483,86872.0,86831.0,0.057647]
[1763659987609,0.00219803,86871.0,86837.0,0.0115285]
[1763659987804,0.0115242,86870.0,86850.0,0.0115268]
[1763659988001,0.01372313,86863.0,86837.0,0.0115286]
[1763659988307,0.01372313,86863.0,86838.0,0.0115283]
[1763659988515,0.01372313,86863.0,86847.0,0.0115272]
[1763659988704,0.0115268,86851.0,86819.0,0.00471616]
[1763659988904,0.00017266,86844.0,86820.0,0.0012]
[1763659989106,0.00017266,86844.0,86842.0,0.0115279]
[1763659989107,0.00219803,86843.0,86842.0,0.0115279]
[1763659989308,0.00538103,86843.0,86842.0,0.0127279]
[1763659989514,0.09219116,86870.0,86842.0,0.0012]
[1763659989813,0.0001127,86869.0,86867.0,0.0115245]
[1763659990110,0.36246196,86900.0,86867.0,0.0115245]
[1763659990111,0.0001127,86868.0,86867.0,0.0115245]
[1763659990310,0.00219803,86899.0,86896.0,0.0115207]
[1763659990502,0.00219803,86899.0,86889.0,0.00017266]
[1763659990700,0.00219803,86899.0,86891.0,0.0115213]
[1763659990907,0.00219803,86899.0,86889.0,0.00017266]
[1763659991106,0.00219803,86899.0,86896.0,0.0115207]
[1763659991310,0.0115205,86898.0,86889.0,0.00017266]
[1763659991510,0.0115208,86896.0,86889.0,0.00017266]
[1763659991717,0.00219803,86890.0,86889.0,0.00017266]
[1763659991906,0.00219803,86890.0,86835.0,0.07302792]
[1763659992107,0.00219803,86890.0,86868.0,0.0115243]
[1763659992413,0.00219803,86890.0,86889.0,0.0125217]
[1763659993306,0.00219803,86890.0,86889.0,0.001]
[1763659993611,0.00219803,86890.0,86868.0,0.001]
[1763659993818,0.0115238,86874.0,86868.0,0.001]
[1763659994015,0.00219803,86869.0,86868.0,0.001]
[1763659994712,0.00219803,86869.0,86848.0,0.01392]
[1763659994912,0.00017266,86868.0,86865.0,0.0115248]
[1763659995111,0.001,86890.0,86853.0,0.0576323]
[1763659995307,0.00319803,86890.0,86876.0,0.0115233]
[1763659995505,0.0115239,86872.0,86868.0,0.001]
[1763659995706,0.01372193,86872.0,86868.0,0.001]
[1763659996811,0.01372193,86872.0,86861.0,0.00017266]
[1763659996812,0.011525,86865.0,86861.0,0.01169806]
[1763659997007,0.00219803,86862.0,86861.0,0.01169806]
[1763659997310,0.00219803,86862.0,86824.0,1.5]
[1763659997311,0.00219803,86862.0,86820.0,0.02153069]
[1763659997510,0.00219803,86862.0,86848.0,0.01392]
[1763659997704,0.00219803,86862.0,86859.0,0.0115256]
[1763659997910,0.00017266,86879.0,86873.0,0.0115237]
[1763659998112,0.00219803,86878.0,86861.0,0.002]
[1763659998316,0.0115246,86868.0,86861.0,0.002]
[1763659998515,0.00219803,86867.0,86864.0,0.0115249]
[1763659998818,0.00219803,86867.0,86861.0,0.002]
[1763659999020,0.0115251,86864.0,86861.0,0.002]
[1763659999210,0.00017266,86879.0,86861.0,0.002]
[1763659999410,0.00219803,86864.0,86862.0,0.0115253]
[1763659999717,0.0115231,86878.0,86865.0,0.0115248]
[1763659999915,0.00219803,86878.0,86861.0,0.002]
[1763660000114,0.00219803,86878.0,86850.0,1.5]
[1763660000323,0.00219803,86878.0,86871.0,0.011524]
[1763660000511,0.00219803,86878.0,86855.0,0.0115262]
[1763660000707,0.0115242,86871.0,86856.0,0.011526]
[1763660001006,0.0115246,86868.0,86865.0,0.002]
[1763660001218,0.00219803,86866.0,86865.0,0.002]
[1763660001412,0.00219803,86866.0,86850.0,1.5]
[1763660001615,0.00219803,86866.0,86859.0,0.0115257]
[1763660001820,0.0115253,86862.0,86861.0,0.0115252]
[1763660002011,0.0115253,86862.0,86850.0,1.5]
[1763660002012,0.00219803,86862.0,86850.0,1.5]
[1763660002211,0.00219803,86862.0,86859.0,0.0115256]
[1763660002420,0.011526,86857.0,86855.0,0.0115261]
[1763660002633,0.0115269,86850.0,86849.0,0.0012]
[1763660002924,0.00219803,86850.0,86849.0,0.0012]
[1763660003122,0.00017266,86858.0,86857.0,0.0115259]
[1763660003318,0.00017266,86858.0,86857.0,0.01372393]
[1763660003626,0.001,86866.0,86865.0,0.0115249]
[1763660003814,0.00173267,86866.0,86865.0,0.00219803]
[1763660004014,0.00073267,86866.0,86865.0,0.00219803]
[1763660004611,0.00073267,86866.0,86859.0,0.001]
[1763660004612,0.0115253,86862.0,86859.0,0.001]
[1763660004821,0.00073267,86861.0,86860.0,0.04552803]
[1763660005123,0.001,86866.0,86865.0,0.0337849]
[1763660005322,0.01325737,86866.0,86865.0,0.04552803]
[1763660005518,0.01325737,86866.0,86865.0,0.00219803]
[1763660005719,0.0115269,86850.0,86810.0,0.00999999]
[1763660006022,0.00219803,86850.0,86814.0,0.0115316]
[1763660006221,0.00219803,86850.0,86808.0,0.0115323]
[1763660006417,0.00219803,86850.0,86848.0,0.011527]
[1763660006616,0.00219803,86850.0,86820.0,0.0115308]
[1763660006817,0.0115279,86843.0,86820.0,0.0115308]
[1763660007022,0.00219803,86842.0,86841.0,0.011528]
[1763660007221,0.00485052,86842.0,86841.0,0.011528]
[1763660007428,3.18e-06,86846.0,86845.0,0.0115275]
[1763660007718,0.0115253,86862.0,86845.0,0.00219803]
[1763660007924,0.0115256,86860.0,86857.0,0.0115259]
[1763660008120,0.0115256,86860.0,86840.0,0.0115281]
[1763660008121,0.0115256,86860.0,86858.0,0.00219803]
[1763660008316,0.00073267,86859.0,86858.0,0.00219803]
[1763660009723,0.01225837,86859.0,86858.0,0.00219803]
[1763660010333,0.03644373,86859.0,86858.0,0.00319803]
[1763660010624,0.02491803,86859.0,86858.0,0.05909383]
[1763660010829,0.00073267,86859.0,86858.0,0.05909383]
[1763660011330,0.00073267,86859.0,86858.0,0.04756803]
[1763660011624,0.0115267,86851.0,86850.0,0.04482266]
[1763660011820,0.01225937,86851.0,86850.0,0.04702069]
[1763660012526,0.00017266,86867.0,86866.0,0.0342947]
[1763660012729,0.00090533,86867.0,86866.0,0.05912273]
[1763660012918,0.00017266,86867.0,86866.0,0.04759803]
[1763660013124,0.05885993,86867.0,86866.0,0.00219803]
[1763660013324,0.08308992,86867.0,86866.0,0.00219803]
[1763660013522,0.00090533,86867.0,86850.0,0.00017266]
[1763660013732,0.0115257,86859.0,86858.0,0.001]
[1763660013936,0.00073267,86859.0,86858.0,0.04859803]
[1763660014235,0.00017266,86867.0,86866.0,0.0125247]
[1763660014436,0.00090533,86867.0,86866.0,0.01472273]
[1763660014644,0.00090533,86867.0,86866.0,0.00319803]
[1763660014834,0.00090533,86867.0,86866.0,0.00219803]
[1763660015035,0.00090533,86867.0,86866.0,0.04759803]
[1763660015233,0.00090533,86867.0,86866.0,0.00219803]
[1763660015635,0.00190533,86867.0,86866.0,0.00219803]
[1763660016030,0.00190533,86867.0,86866.0,0.02496803]
[1763660016341,0.14939948,86890.0,86866.0,0.02496803]
[1763660016342,0.0115205,86898.0,86877.0,0.01383]
[1763660016530,0.00073267,86886.0,86878.0,0.00219803]
[1763660016736,0.011523,86880.0,86878.0,0.00219803]
[1763660017040,0.011523,86880.0,86866.0,0.001]
[1763660017041,0.0115246,86867.0,86866.0,0.001]
[1763660017240,0.01225727,86867.0,86866.0,0.00319803]
[1763660017629,0.01225727,86867.0,86866.0,0.00219803]
[1763660017835,0.0579557,86859.0,86858.0,6e-08]
[1763660018043,0.0115268,86851.0,86847.0,0.0115272]
[1763660018240,0.00073267,86850.0,86849.0,0.0454]
[1763660018441,0.00073267,86850.0,86849.0,0.04759803]
[1763660018744,0.011525,86865.0,86860.0,0.0115254]
[1763660018940,0.0115248,86866.0,86864.0,0.01372293]
[1763660019134,0.00073267,86865.0,86864.0,0.05912293]
[1763660019841,0.00073267,86865.0,86864.0,0.04759803]
[1763660020045,0.0115254,86861.0,86860.0,0.001]
[1763660020341,0.01225807,86861.0,86860.0,0.00219803]
[1763660021132,0.00073267,86861.0,86860.0,0.02496803]
[1763660021332,0.00073267,86861.0,86860.0,0.04759803]
[1763660021531,0.0115248,86866.0,86860.0,0.04759803]
[1763660021532,0.00017266,86871.0,86870.0,0.0569242]
[1763660021731,0.02449204,86871.0,86870.0,0.00219803]
[1763660021942,0.04775204,86871.0,86870.0,0.00219803]
[1763660022138,0.02449204,86871.0,86870.0,0.00219803]
[1763660022743,0.00017266,86871.0,86870.0,0.02496803]
[1763660022946,0.04010159,86891.0,86887.0,0.0454]
[1763660023143,0.04010159,86911.0,86888.0,0.00219803]
[1763660023344,0.02432818,86910.0,86909.0,0.02277]
[1763660023534,0.02432818,86910.0,86909.0,0.02496803]
[1763660023742,0.02432818,86910.0,86909.0,0.00219803]
[1763660024047,0.02432818,86910.0,86909.0,0.05911703]
[1763660024242,0.00017266,86918.0,86917.0,0.0454]
[1763660024439,0.02448671,86918.0,86917.0,0.04759803]
[1763660024748,0.09168512,86932.0,86917.0,0.00219803]
[1763660024944,0.0347778,86918.0,86917.0,0.00219803]
[1763660025143,0.0115178,86918.0,86917.0,0.00219803]
[1763660025338,0.0125178,86918.0,86917.0,0.00219803]
[1763660025947,0.001,86918.0,86917.0,0.00219803]
[1763660026150,0.001,86918.0,86917.0,0.02496803]
[1763660026338,0.001,86918.0,86917.0,0.04759803]
[1763660026544,0.0125178,86918.0,86917.0,0.00219803]
[1763660026848,0.0125178,86918.0,86917.0,0.02496803]
[1763660027047,0.0125178,86918.0,86917.0,0.00219803]
[1763660027242,0.001,86918.0,86917.0,0.04759803]
[1763660027448,0.0125178,86918.0,86917.0,0.00219803]
[1763660027960,0.001,86918.0,86917.0,0.00219803]
[1763660028437,0.001,86918.0,86917.0,0.04759803]
[1763660028638,0.001,86918.0,86917.0,0.00219803]
[1763660028839,0.00017256,86926.0,86917.0,0.00219803]
[1763660029049,0.0115177,86919.0,86918.0,0.02277]
[1763660029240,0.01168936,86926.0,86925.0,0.0454]
[1763660029444,0.05811936,86926.0,86925.0,0.00219803]
[1763660029839,0.0115189,86910.0,86900.0,0.17474968]
[1763660030046,0.0115189,86910.0,86909.0,0.00237059]
[1763660030251,0.0579489,86910.0,86909.0,0.00017256]
[1763660030456,0.00017256,86926.0,86880.0,0.16322948]
[1763660030751,0.0115216,86890.0,86888.0,0.0115217]
[1763660030953,0.0115216,86890.0,86889.0,0.00219803]
[1763660031343,0.0115206,86898.0,86889.0,0.00219803]
[1763660031543,0.00017256,86898.0,86889.0,0.00219803]
[1763660031746,0.0115213,86893.0,86890.0,0.0115215]
[1763660031946,0.00017256,86898.0,86893.0,0.0115212]
[1763660032149,0.00017256,86898.0,86881.0,0.00017256]
[1763660032150,0.00017256,86898.0,86897.0,0.04759803]
[1763660032551,0.00017256,86898.0,86897.0,0.00219803]
[1763660032748,0.00017256,86898.0,86897.0,0.01371863]
[1763660032963,0.00017256,86898.0,86897.0,0.05911863]
[1763660033145,0.00017256,86898.0,86897.0,0.04759803]
[1763660033345,0.00017256,86898.0,86897.0,0.05911863]
[1763660033854,0.0115187,86912.0,86910.0,0.0115188]
[1763660034152,0.04010159,86939.0,86912.0,0.02277]
[1763660034357,0.0115183,86915.0,86913.0,0.00219803]
[1763660035058,0.0115182,86916.0,86915.0,0.0569181]
[1763660035251,0.0115182,86916.0,86915.0,0.00219803]
[1763660035653,0.0347782,86916.0,86915.0,0.00219803]
[1763660035849,0.0579488,86911.0,86910.0,0.001]
[1763660036051,0.0579488,86911.0,86910.0,0.00319803]
[1763660036245,0.0115188,86911.0,86910.0,0.00319803]
[1763660036451,0.0579494,86906.0,86905.0,0.00017256]
[1763660036646,0.001,86915.0,86880.0,0.01383]
[1763660036864,0.0115214,86892.0,86890.0,0.14939948]
[1763660037055,0.0115193,86908.0,86891.0,0.00219803]
[1763660037248,0.0115187,86912.0,86910.0,0.02277]
[1763660037452,0.0115187,86912.0,86911.0,0.00219803]
[1763660037963,0.011518,86917.0,86914.0,0.0115184]
[1763660038167,0.0115178,86919.0,86917.0,0.011518]
[1763660038355,0.00017256,86920.0,86903.0,0.01169236]
[1763660038356,0.00017256,86920.0,86919.0,0.0115177]
[1763660038555,0.00017256,86920.0,86919.0,0.00219803]
[1763660038758,0.01169016,86920.0,86919.0,0.00219803]
[1763660038961,0.02343256,86920.0,86903.0,0.00017256]
[1763660039160,0.0115191,86909.0,86907.0,0.0115193]
[1763660039361,0.0115186,86913.0,86908.0,0.00219803]
[1763660039558,0.0115188,86911.0,86908.0,0.00219803]
[1763660039868,0.0579497,86904.0,86903.0,0.00017256]
[1763660040362,0.14939948,86913.0,86869.0,0.08036]
[1763660040567,0.14939948,86913.0,86870.0,0.00219803]
[1763660040568,0.0115241,86871.0,86870.0,0.00219803]
[1763660040959,0.0115249,86865.0,86849.0,0.73983]
[1763660041155,0.01216803,86872.0,86864.0,0.00233485]
[1763660041361,0.00017267,86877.0,86876.0,0.0454]
[1763660041667,0.04010159,86922.0,86880.0,0.01383]
[1763660041958,0.0115208,86896.0,86881.0,0.00219803]
[1763660042162,0.0115203,86900.0,86881.0,0.00219803]
[1763660042361,0.0115193,86907.0,86881.0,0.00219803]
[1763660042558,0.0115221,86886.0,86885.0,0.00017267]
[1763660042863,0.0115203,86900.0,86885.0,0.0023707]
[1763660043064,0.00017267,86903.0,86902.0,0.04421]
[1763660043260,0.00017267,86903.0,86902.0,0.04640803]
[1763660043565,0.00017267,86903.0,86902.0,0.00219803]
[1763660043762,0.00017267,86903.0,86902.0,0.04640803]
[1763660043961,0.01219646,86920.0,86906.0,0.0115194]
[1763660044157,0.01219646,86920.0,86919.0,0.00219803]
[1763660044158,0.0563876,86920.0,86919.0,0.00219803]
[1763660044359,0.0115204,86899.0,86890.0,0.25037224]
[1763660044565,0.0115204,86899.0,86872.0,0.04113656]
[1763660044566,0.0563913,86892.0,86891.0,0.00219803]
[1763660044864,0.0115208,86896.0,86864.0,0.00013682]
[1763660045163,0.0115235,86876.0,86871.0,0.00017267]
[1763660045357,0.00017267,86900.0,86871.0,0.00017267]
[1763660045358,0.00017267,86882.0,86881.0,0.02173]
[1763660045560,0.0115222,86885.0,86882.0,0.00219803]
[1763660046163,0.00017267,86890.0,86885.0,0.0115221]
[1763660046366,0.00017267,86890.0,86889.0,0.02392803]
[1763660046669,0.0115239,86872.0,86871.0,0.00017267]
[1763660046867,0.01372193,86872.0,86871.0,0.0009027]
[1763660047064,0.00219803,86872.0,86871.0,0.0009027]
[1763660047368,0.00219803,86872.0,86871.0,0.0226327]
[1763660047555,0.00017267,86890.0,86889.0,0.0332517]
[1763660047760,0.09393445,86913.0,86889.0,0.00073003]
[1763660047960,0.0115198,86904.0,86889.0,0.00073003]
[1763660048161,0.00219803,86904.0,86902.0,0.0115199]
[1763660048467,0.00219803,86904.0,86903.0,0.02246003]
[1763660048661,0.00219803,86904.0,86903.0,0.00073003]
[1763660049872,0.01371773,86904.0,86903.0,0.00073003]
[1763660050063,0.00319803,86904.0,86903.0,0.00073003]
[1763660050664,0.00219803,86904.0,86903.0,0.00073003]
[1763660051162,0.0115208,86896.0,86895.0,0.00017267]
[1763660051357,0.05858883,86896.0,86895.0,0.0009027]
[1763660051565,0.02652687,86896.0,86884.0,0.0115222]
[1763660051777,0.0115219,86888.0,86885.0,0.00073003]
[1763660051968,0.0115222,86885.0,86853.0,0.0115264]
[1763660052162,0.0115245,86868.0,86865.0,0.00073003]
[1763660052366,0.04706803,86866.0,86865.0,0.00073003]
[1763660052569,0.00219803,86866.0,86865.0,0.00073003]
[1763660052968,0.00219803,86866.0,86865.0,0.02246003]
[1763660053168,0.04706803,86866.0,86865.0,0.00073003]
[1763660053366,0.02433723,86866.0,86865.0,0.05646493]
[1763660053863,0.00017267,86874.0,86865.0,0.05646493]
[1763660053864,0.00017267,86874.0,86865.0,0.00073003]
[1763660054174,0.00017267,86874.0,86873.0,0.04421]
[1763660054476,0.00017267,86874.0,86873.0,0.04494003]
[1763660054874,0.05153895,86906.0,86902.0,0.01152]
[1763660055067,0.0115197,86904.0,86903.0,0.00073003]
[1763660055261,0.02665196,86904.0,86903.0,0.00073003]
[1763660055470,0.02665196,86904.0,86903.0,0.04494003]